bitfinex/quotes_BTCUSD_20250610
["timestamp","ask_amount","ask_price","bid_price","bid_amount"]
[1749576552156,1.37575295,108890.0,108880.0,0.48068287]
[1749576552375,1.37575295,108890.0,108880.0,0.48068532]
[1749576552602,1.37575295,108890.0,108880.0,0.08068532]
[1749576552814,1.37575295,108890.0,108880.0,0.08068232]
[1749576553032,1.37575295,108890.0,108880.0,0.48067979]
[1749576553251,1.37575295,108890.0,108880.0,0.45703667]
[1749576553477,1.37575295,108890.0,108880.0,0.47423181]
[1749576553699,1.37575295,108890.0,108880.0,0.10017561]
[1749576553920,1.37575295,108890.0,108880.0,0.07265843]
[1749576554170,2.08535564,108890.0,108880.0,0.05316485]
[1749576554385,2.08535564,108890.0,108880.0,0.03273635]
[1749576554600,2.11292864,108890.0,108880.0,0.03273635]
[1749576554821,2.11292864,108890.0,108880.0,0.02629002]
[1749576555036,0.56337271,108880.0,108870.0,4e-05]
[1749576555251,2.25728319,108880.0,108870.0,4e-05]
[1749576556146,2.26128319,108880.0,108870.0,0.00104]
[1749576556361,2.26428319,108880.0,108870.0,0.00104]
[1749576557874,0.87415951,108880.0,108870.0,0.00104]
[1749576558105,2.26428319,108880.0,108870.0,0.00104]
[1749576558556,1.44814135,108880.0,108870.0,0.00104]
[1749576558794,1.56930135,108880.0,108870.0,0.00104]
[1749576559018,1.56934135,108880.0,108870.0,0.00104]
[1749576559207,1.44814135,108880.0,108870.0,0.00104]
[1749576559419,1.56934135,108880.0,108870.0,0.00104]
[1749576561664,1.44814135,108880.0,108870.0,0.00104]
[1749576561919,1.56934135,108880.0,108870.0,0.00104]
[1749576562575,1.43254135,108880.0,108870.0,0.00104]
[1749576562811,0.72117951,108880.0,108870.0,0.01694]
[1749576563030,1.42088795,108880.0,108870.0,0.03224]
[1749576563467,1.42088795,108880.0,108870.0,0.05975931]
[1749576563934,0.72582611,108880.0,108870.0,0.05975931]
[1749576564181,0.53847271,108880.0,108870.0,0.05975931]
[1749576564399,0.65967271,108880.0,108870.0,0.05975931]
[1749576565048,0.65967271,108880.0,108870.0,0.09644974]
[1749576565724,0.75102611,108880.0,108870.0,0.09644974]
[1749576566162,0.75102611,108880.0,108870.0,0.49644974]
[1749576567000,1.44608795,108880.0,108870.0,0.51359394]
[1749576567461,1.44608795,108880.0,108870.0,0.49644974]
[1749576568083,1.44608795,108880.0,108870.0,0.4616038]
[1749576568293,1.44608795,108880.0,108870.0,0.49829442]
[1749576568500,1.44608795,108880.0,108870.0,0.4982942]
[1749576568918,1.44608795,108880.0,108870.0,0.48114974]
[1749576569123,1.44608795,108880.0,108870.0,0.09829426]
[1749576569342,1.44608795,108880.0,108870.0,0.09829432]
[1749576569573,0.75102611,108880.0,108870.0,0.08239435]
[1749576569780,0.75102611,108880.0,108870.0,0.44570423]
[1749576569781,1.44608795,108880.0,108870.0,0.44570423]
[1749576569990,0.75102611,108880.0,108870.0,0.48239453]
[1749576570198,1.44608795,108880.0,108870.0,0.48239453]
[1749576570403,1.44608795,108880.0,108870.0,0.4823955]
[1749576570404,0.75102611,108880.0,108870.0,0.4823955]
[1749576570612,1.44608795,108880.0,108870.0,0.46524974]
[1749576571058,1.44608795,108880.0,108870.0,0.48239981]
[1749576571705,1.44608795,108880.0,108870.0,0.49769981]
[1749576572434,1.44608795,108880.0,108870.0,0.49769957]
[1749576572655,1.44608795,108880.0,108870.0,0.08054974]
[1749576572880,1.44608795,108880.0,108870.0,0.09769957]
[1749576573096,1.44608795,108880.0,108870.0,0.08054974]
[1749576573316,1.44608795,108880.0,108870.0,0.49769963]
[1749576573792,1.35008795,108880.0,108870.0,0.49769962]
[1749576574001,1.44600795,108880.0,108870.0,0.51420362]
[1749576574221,1.44600795,108880.0,108870.0,0.49704974]
[1749576574666,1.44600795,108880.0,108870.0,0.51420745]
[1749576574883,1.44600795,108880.0,108870.0,0.51420744]
[1749576575344,1.44600795,108880.0,108870.0,0.48668827]
[1749576575557,1.44600795,108880.0,108870.0,0.4866882]
[1749576575775,1.44600795,108880.0,108870.0,0.48668813]
[1749576576002,0.75090611,108880.0,108870.0,0.46953043]
[1749576576221,1.44596795,108880.0,108870.0,0.08668813]
[1749576576442,1.44596795,108880.0,108870.0,0.06953043]
[1749576576661,1.44596795,108880.0,108870.0,0.47018813]
[1749576578270,1.44596795,108880.0,108870.0,0.45303043]
[1749576578489,1.44596795,108880.0,108870.0,0.52523724]
[1749576578723,1.44596795,108880.0,108870.0,0.5080671]
[1749576578965,1.44596795,108880.0,108870.0,0.52523712]
[1749576579591,1.44596795,108880.0,108870.0,0.52523704]
[1749576579811,1.44596795,108880.0,108870.0,0.12523704]
[1749576580037,1.44596795,108880.0,108870.0,0.1080671]
[1749576580251,1.44596795,108880.0,108870.0,0.5080671]
[1749576580678,0.62982611,108880.0,108870.0,0.52523704]
[1749576581045,1.44616795,108880.0,108870.0,0.5080671]
[1749576581264,0.75110611,108880.0,108870.0,0.54124684]
[1749576581476,1.44616795,108880.0,108870.0,0.5240671]
[1749576581852,1.44616795,108880.0,108870.0,0.52524684]
[1749576582052,1.44616795,108880.0,108870.0,0.5080671]
[1749576582301,1.44616795,108880.0,108870.0,0.52524694]
[1749576582499,1.32488795,108880.0,108870.0,0.52524694]
[1749576582751,1.44612795,108880.0,108870.0,0.52524694]
[1749576582974,1.44612795,108880.0,108870.0,0.52525288]
[1749576583181,1.44612795,108880.0,108870.0,0.1080671]
[1749576583405,1.44612795,108880.0,108870.0,0.12525288]
[1749576583633,1.44612795,108880.0,108870.0,0.1080671]
[1749576583850,1.44612795,108880.0,108870.0,0.52525288]
[1749576584090,1.44612795,108880.0,108870.0,0.5080671]
[1749576584305,1.44612795,108880.0,108870.0,0.48856245]
[1749576585241,1.44612795,108880.0,108870.0,0.48856421]
[1749576585673,1.44612795,108880.0,108870.0,0.47137667]
[1749576585893,1.44612795,108880.0,108870.0,0.48856427]
[1749576586544,1.44612795,108880.0,108870.0,0.48857505]
[1749576586760,1.44612795,108880.0,108870.0,0.08857507]
[1749576586986,1.44612795,108880.0,108870.0,0.07137667]
[1749576587207,1.44612795,108880.0,108870.0,0.47137667]
[1749576587853,1.44612795,108880.0,108870.0,0.48857499]
[1749576588064,1.44612795,108880.0,108870.0,0.48857503]
[1749576588280,1.44612795,108880.0,108870.0,0.48857543]
[1749576588703,1.44612795,108880.0,108870.0,0.48857532]
[1749576588943,1.44612795,108880.0,108870.0,0.48857531]
[1749576589165,1.44612795,108880.0,108870.0,0.47137667]
[1749576589384,1.44612795,108880.0,108870.0,0.48857696]
[1749576590054,1.44612795,108880.0,108870.0,0.47137667]
[1749576590282,1.44612795,108880.0,108870.0,0.07137667]
[1749576590561,1.46132795,108880.0,108870.0,0.05607667]
[1749576590779,1.46132795,108880.0,108870.0,0.45607667]
[1749576591212,1.46132795,108880.0,108870.0,0.47327724]
[1749576591673,2.26414319,108880.0,108870.0,0.05495371]
[1749576591891,2.26414319,108880.0,108870.0,0.06528972]
[1749576592101,1.59665435,108880.0,108870.0,0.06528972]
[1749576592934,1.59665435,108880.0,108870.0,0.08250713]
[1749576593354,1.59665435,108880.0,108870.0,0.08250701]
[1749576593788,1.59665435,108880.0,108870.0,0.082507]
[1749576594233,1.59665435,108880.0,108870.0,0.08250701]
[1749576594643,1.59665435,108880.0,108870.0,0.06528972]
[1749576594853,1.59665435,108880.0,108870.0,0.08250702]
[1749576595498,1.59665435,108880.0,108870.0,0.06528972]
[1749576595720,1.59665435,108880.0,108870.0,0.08250705]
[1749576595928,1.59665435,108880.0,108870.0,0.06528972]
[1749576596782,1.59665435,108880.0,108870.0,0.08250832]
[1749576597204,1.59665435,108880.0,108870.0,0.08250836]
[1749576597414,2.31632717,108880.0,108870.0,0.01825864]
[1749576597652,2.29171619,108880.0,108870.0,0.01823581]
[1749576597862,2.29171619,108880.0,108870.0,0.01823598]
[1749576598099,2.29171619,108880.0,108870.0,0.00104]
[1749576598310,2.29171619,108880.0,108870.0,0.01823597]
[1749576598515,1.59665435,108880.0,108870.0,0.00104]
[1749576598724,2.29171619,108880.0,108870.0,0.00104]
[1749576599157,0.90159251,108880.0,108870.0,0.01823597]
[1749576599370,2.29171619,108880.0,108870.0,0.01823597]
[1749576600415,2.29171619,108880.0,108870.0,0.00104]
[1749576600417,2.29171619,108880.0,108870.0,0.01823597]
[1749576600579,2.29171619,108880.0,108870.0,0.01823355]
[1749576601194,2.29171619,108880.0,108870.0,0.01823356]
[1749576601422,1.59665435,108880.0,108870.0,0.01823355]
[1749576601647,2.29171619,108880.0,108870.0,0.01823356]
[1749576601897,2.29171619,108880.0,108870.0,0.00104]
[1749576602360,2.31632717,108880.0,108870.0,0.01823415]
[1749576602580,2.29171619,108880.0,108870.0,0.01823415]
[1749576602829,2.29171619,108880.0,108870.0,0.00104]
[1749576603275,2.29171619,108880.0,108870.0,0.01823415]
[1749576603502,2.29171619,108880.0,108870.0,0.00104]
[1749576603736,2.29171619,108880.0,108870.0,0.0182341]
[1749576604203,2.29171619,108880.0,108870.0,0.00104]
[1749576604417,2.29171619,108880.0,108870.0,0.01823143]
[1749576604625,2.29171619,108880.0,108870.0,0.02510923]
[1749576604829,2.29171619,108880.0,108870.0,0.01823145]
[1749576605079,2.29171619,108880.0,108870.0,0.00791778]
[1749576605307,2.29171619,108880.0,108870.0,0.01823141]
[1749576605511,2.29171619,108880.0,108870.0,0.01823139]
[1749576606146,0.90159251,108880.0,108870.0,0.01823139]
[1749576606356,2.29171619,108880.0,108870.0,0.01823139]
[1749576606567,2.35625704,108880.0,108870.0,0.01823139]
[1749576606779,2.38086802,108880.0,108870.0,0.00104]
[1749576608095,2.37686802,108880.0,108870.0,4e-05]
[1749576608403,2.38286802,108880.0,108870.0,4e-05]
[1749576609270,2.35825704,108880.0,108870.0,4e-05]
[1749576610232,2.35525704,108880.0,108870.0,4e-05]
[1749576611570,2.36025704,108880.0,108870.0,0.00104]
[1749576616431,0.00918509,108870.0,108860.0,0.002]
[1749576616593,2.24744175,108870.0,108860.0,0.002]
[1749576617611,2.26583666,108870.0,108850.0,0.08312272]
[1749576617818,2.15652608,108860.0,108850.0,0.0272051]
[1749576618272,2.18410908,108860.0,108850.0,0.02720546]
[1749576618495,2.18410908,108860.0,108850.0,3.6e-07]
[1749576618700,0.57906672,108850.0,108840.0,0.002]
[1749576618904,2.1567038,108850.0,108840.0,0.002]
[1749576619530,0.20214954,108830.0,108820.0,0.01844]
[1749576619731,1.11060478,108830.0,108820.0,0.00204]
[1749576619889,1.11060478,108830.0,108820.0,0.01844]
[1749576620088,1.14837442,108830.0,108820.0,0.01844]
[1749576620295,1.20403666,108830.0,108820.0,0.01844]
[1749576620742,1.09114122,108830.0,108820.0,0.03424]
[1749576620945,1.21318122,108830.0,108820.0,0.03424]
[1749576621914,1.55318122,108830.0,108820.0,0.03424]
[1749576622388,1.55418122,108830.0,108820.0,0.03824]
[1749576622526,1.55514122,108830.0,108820.0,0.03824]
[1749576622715,1.43314122,108830.0,108820.0,0.03824]
[1749576622911,1.55514122,108830.0,108820.0,0.03824]
[1749576623748,0.73807938,108830.0,108820.0,0.03824]
[1749576623952,1.55550122,108830.0,108820.0,0.03824]
[1749576624744,1.43314122,108830.0,108820.0,0.03824]
[1749576624952,1.55558122,108830.0,108820.0,0.03824]
[1749576625355,1.55558122,108830.0,108820.0,0.02244]
[1749576626410,1.55558122,108830.0,108820.0,0.00604]
[1749576627685,1.58638122,108830.0,108820.0,0.00604]
[1749576627885,2.34153346,108830.0,108820.0,0.00051891]
[1749576628133,0.62496945,108820.0,108810.0,0.01948109]
[1749576628396,2.29455993,108820.0,108810.0,0.00570127]
[1749576628808,1.95502047,108810.0,108800.0,0.002]
[1749576629012,2.14317387,108810.0,108800.0,0.002]
[1749576629456,2.17076687,108810.0,108800.0,0.002]
[1749576629892,2.05816687,108810.0,108800.0,0.002]
[1749576630115,2.25694027,108810.0,108800.0,0.0174]
[1749576630526,2.13442027,108810.0,108800.0,0.0174]
[1749576630740,1.43935843,108810.0,108800.0,0.0325]
[1749576630964,2.28754027,108810.0,108800.0,0.002]
[1749576631509,2.28954027,108810.0,108800.0,0.002]
[1749576633791,2.27394027,108810.0,108800.0,0.002]
[1749576635188,2.28914027,108810.0,108800.0,0.002]
[1749576637607,2.26769127,108810.0,108800.0,0.002]
[1749576637784,2.27688143,108810.0,108800.0,0.002]
[1749576638331,2.31559468,108810.0,108800.0,0.002]
[1749576638707,2.29142228,108810.0,108800.0,0.002]
[1749576641110,2.98648412,108810.0,108800.0,0.002]
[1749576641300,2.29142228,108810.0,108800.0,0.002]
[1749576643823,1.24307636,108800.0,108790.0,4e-05]
[1749576644030,1.52222316,108800.0,108790.0,4e-05]
[1749576644488,1.54981916,108800.0,108790.0,4e-05]
[1749576644684,1.56491916,108800.0,108790.0,4e-05]
[1749576646044,1.56691916,108800.0,108790.0,0.00204]
[1749576648010,1.55181916,108800.0,108790.0,0.00204]
[1749576649841,1.53681916,108800.0,108790.0,0.00204]
[1749576650715,1.55221916,108800.0,108790.0,0.00204]
[1749576652634,2.262981,108800.0,108790.0,0.00204]
[1749576652821,1.56791916,108800.0,108790.0,0.00204]
[1749576653049,2.262981,108800.0,108790.0,0.00204]
[1749576653466,1.56791916,108800.0,108790.0,0.00204]
[1749576654123,1.55221916,108800.0,108790.0,0.00204]
[1749576654757,1.45577916,108800.0,108790.0,0.00204]
[1749576654983,1.56245916,108800.0,108790.0,0.00204]
[1749576655448,1.59325916,108800.0,108790.0,0.00204]
[1749576655882,2.288321,108800.0,108790.0,0.00204]
[1749576656109,1.59325916,108800.0,108790.0,0.00204]
[1749576656317,2.30286185,108800.0,108790.0,0.00204]
[1749576657702,1.92315595,108790.0,108780.0,0.0172]
[1749576657926,2.14831899,108790.0,108780.0,0.002]
[1749576658542,2.17591799,108790.0,108780.0,0.002]
[1749576658950,2.17691799,108790.0,108780.0,0.005]
[1749576659156,2.17791799,108790.0,108780.0,0.005]
[1749576661685,2.17691799,108790.0,108780.0,0.002]
[1749576661871,0.53305001,108780.0,108770.0,0.06000884]
[1749576662106,2.20184049,108780.0,108770.0,0.04470884]
[1749576662276,2.20184049,108780.0,108770.0,0.0173]
[1749576662704,2.22944049,108780.0,108770.0,0.0173]
[1749576663054,2.23044049,108780.0,108770.0,0.0173]
[1749576664447,2.23044049,108780.0,108770.0,0.0193]
[1749576664660,2.23144049,108780.0,108770.0,0.0193]
[1749576665115,2.25736049,108780.0,108770.0,0.0193]
[1749576666726,2.13548049,108780.0,108770.0,0.0358]
[1749576666943,2.25720049,108780.0,108770.0,0.0358]
[1749576669905,2.25720049,108780.0,108770.0,0.0193]
[1749576670362,2.25664049,108780.0,108770.0,0.0035]
[1749576671128,2.25664049,108780.0,108770.0,0.03629687]
[1749576671615,2.25664049,108780.0,108770.0,0.02069311]
[1749576672588,2.13548049,108780.0,108770.0,0.03629311]
[1749576672811,2.25664049,108780.0,108770.0,0.03629311]
[1749576673252,2.13548049,108780.0,108770.0,0.03629311]
[1749576673480,2.13548049,108780.0,108770.0,0.05209311]
[1749576673695,2.25664049,108780.0,108770.0,0.05209311]
[1749576674566,2.13548049,108780.0,108770.0,0.05209311]
[1749576674786,2.25660049,108780.0,108770.0,0.05209311]
[1749576675255,2.13548049,108780.0,108770.0,0.05209311]
[1749576675486,1.56153865,108780.0,108770.0,0.07950867]
[1749576676654,1.56153865,108780.0,108770.0,0.05209983]
[1749576676883,1.56153865,108780.0,108770.0,0.07963174]
[1749576677106,1.56153865,108780.0,108770.0,0.05209983]
[1749576677995,2.25660049,108780.0,108770.0,0.05209983]
[1749576678455,0.86647681,108780.0,108770.0,0.05209983]
[1749576678679,0.86635681,108780.0,108770.0,0.11634909]
[1749576678906,2.25648049,108780.0,108770.0,0.11634909]
[1749576679112,2.25648049,108780.0,108770.0,0.08881369]
[1749576680234,0.74535681,108780.0,108770.0,0.11636007]
[1749576680446,1.56137865,108780.0,108770.0,0.11636007]
[1749576680652,2.25644049,108780.0,108770.0,0.11636007]
[1749576680867,2.25644049,108780.0,108770.0,0.08882919]
[1749576683145,0.86631681,108780.0,108770.0,0.08882919]
[1749576683346,0.77496341,108780.0,108770.0,0.08882919]
[1749576683551,2.16508709,108780.0,108770.0,0.08882919]
[1749576683755,0.77496341,108780.0,108770.0,0.08882919]
[1749576684062,2.16524709,108780.0,108770.0,0.08882919]
[1749576684453,2.04412709,108780.0,108770.0,0.08882919]
[1749576684680,2.25660049,108780.0,108770.0,0.08882919]
[1749576684893,2.13548049,108780.0,108770.0,0.08882919]
[1749576685067,2.25656049,108780.0,108770.0,0.08882919]
[1749576685485,2.25656049,108780.0,108770.0,0.08882967]
[1749576686039,2.25656049,108780.0,108770.0,0.14390047]
[1749576687532,1.56149865,108780.0,108770.0,0.14390047]
[1749576687767,2.25656049,108780.0,108770.0,0.14390047]
[1749576688203,0.77508341,108780.0,108770.0,0.14390047]
[1749576688423,2.16520709,108780.0,108770.0,0.14390047]
[1749576689080,2.16520709,108780.0,108770.0,0.14389854]
[1749576689923,2.16520709,108780.0,108770.0,0.08882774]
[1749576690745,1.58319145,108770.0,108760.0,0.05456094]
[1749576690987,1.77006485,108770.0,108760.0,0.05456094]
[1749576691195,1.07500301,108770.0,108760.0,0.05456094]
[1749576691677,1.10260301,108770.0,108760.0,0.05456094]
[1749576691884,1.10260301,108770.0,108760.0,0.03876094]
[1749576692107,1.19395641,108770.0,108760.0,0.03876094]
[1749576692306,1.19395641,108770.0,108760.0,0.05456094]
[1749576692510,1.19595641,108770.0,108760.0,0.05556094]
[1749576693157,1.22293354,108770.0,108760.0,0.05556094]
[1749576693381,1.22293354,108770.0,108760.0,0.03976094]
[1749576693601,1.22293354,108770.0,108760.0,0.05566094]
[1749576694082,1.22293354,108770.0,108760.0,0.03976094]
[1749576694312,1.91799538,108770.0,108760.0,0.03976094]
[1749576694533,1.91799538,108770.0,108760.0,0.00304]
[1749576694749,1.93369538,108770.0,108760.0,0.00304]
[1749576694965,1.23863354,108770.0,108760.0,0.00304]
[1749576695415,1.22293354,108770.0,108760.0,0.00304]
[1749576698079,1.12741354,108770.0,108760.0,0.00304]
[1749576698297,1.24849354,108770.0,108760.0,0.03514]
[1749576699528,0.5258317,108770.0,108760.0,0.03514]
[1749576699727,1.22089354,108770.0,108760.0,0.0902108]
[1749576700812,1.00846014,108770.0,108760.0,0.0902108]
[1749576701051,1.12942014,108770.0,108760.0,0.0902108]
[1749576701308,0.7743583,108770.0,108760.0,0.0902108]
[1749576701530,1.46942014,108770.0,108760.0,0.0902108]
[1749576702626,1.46942014,108770.0,108760.0,0.1074212]
[1749576702842,1.46942014,108770.0,108760.0,0.0902108]
[1749576703068,1.46942014,108770.0,108760.0,0.1074212]
[1749576703278,1.46942014,108770.0,108760.0,0.0902108]
[1749576703479,1.46942014,108770.0,108760.0,0.4902108]
[1749576706395,1.46942014,108770.0,108760.0,0.0902108]
[1749576706990,1.46942014,108770.0,108760.0,0.4902108]
[1749576707726,1.46942014,108770.0,108760.0,0.0902108]
[1749576707940,0.7743583,108770.0,108760.0,0.0902108]
[1749576708146,1.46942014,108770.0,108760.0,0.0902108]
[1749576711715,1.46942014,108770.0,108760.0,0.4902108]
[1749576713097,0.5620449,108770.0,108760.0,0.4902108]
[1749576713300,1.35274674,108770.0,108760.0,0.4902108]
[1749576713519,0.6576849,108770.0,108760.0,0.4902108]
[1749576713728,1.35274674,108770.0,108760.0,0.4902108]
[1749576713936,1.25710674,108770.0,108760.0,0.4902108]
[1749576714148,1.46946014,108770.0,108760.0,0.4902108]
[1749576714848,1.46946014,108770.0,108760.0,0.0902108]
[1749576715268,1.46946014,108770.0,108760.0,0.4902108]
[1749576715481,1.46942014,108770.0,108760.0,0.4902108]
[1749576716368,1.46938014,108770.0,108760.0,0.4902108]
[1749576716986,1.44240301,108770.0,108760.0,0.4902108]
[1749576718147,1.44240301,108770.0,108760.0,0.0902108]
[1749576718796,1.44240301,108770.0,108760.0,0.4902108]
[1749576719413,1.44240301,108770.0,108760.0,0.4702108]
[1749576720718,1.46972762,108770.0,108760.0,0.4702108]
[1749576721693,1.37837422,108770.0,108760.0,0.0702108]
[1749576722272,1.37837422,108770.0,108760.0,0.4702108]
[1749576722471,1.37837422,108770.0,108760.0,0.4852108]
[1749576722922,1.23012961,108770.0,108760.0,0.43014]
[1749576723144,0.19506777,108770.0,108760.0,0.43014]
[1749576723377,0.19506777,108770.0,108760.0,0.59891963]
[1749576723378,1.23012961,108770.0,108760.0,0.59891963]
[1749576723591,1.2656034,108770.0,108760.0,0.59891963]
[1749576723838,1.2656034,108770.0,108760.0,0.50343963]
[1749576724271,0.57054156,108770.0,108760.0,0.50343963]
[1749576724482,1.2656034,108770.0,108760.0,0.50343963]
[1749576724939,1.2656034,108770.0,108760.0,0.59887963]
[1749576725147,1.2656034,108770.0,108760.0,0.19887963]
[1749576725808,1.2656034,108770.0,108760.0,0.48843963]
[1749576728955,1.2818034,108770.0,108760.0,0.48843963]
[1749576729198,1.2656034,108770.0,108760.0,0.48843963]
[1749576730189,1.29331322,108770.0,108760.0,0.48843963]
[1749576734444,1.29331322,108770.0,108760.0,0.58371963]
[1749576736046,1.40016662,108770.0,108760.0,0.07329963]
[1749576736273,1.49544662,108770.0,108760.0,0.07329963]
[1749576736486,0.19308551,108760.0,108750.0,0.18477963]
[1749576736701,0.97950075,108760.0,108750.0,0.58477963]
[1749576737188,0.97950075,108760.0,108750.0,0.60117963]
[1749576737396,0.19308551,108760.0,108750.0,0.60117963]
[1749576737933,0.19408551,108760.0,108750.0,0.52788]
[1749576738781,0.19508551,108760.0,108750.0,0.52888]
[1749576739645,0.19508551,108760.0,108750.0,0.12888]
[1749576740074,0.19508551,108760.0,108750.0,0.52888]
[1749576740277,0.19508551,108760.0,108750.0,0.6204258]
[1749576740482,0.19508551,108760.0,108750.0,0.52888]
[1749576740914,0.20412321,108760.0,108750.0,0.52888]
[1749576743640,0.20412321,108760.0,108750.0,0.6204258]
[1749576744051,0.19508551,108760.0,108750.0,1.31548764]
[1749576744482,0.19508551,108760.0,108750.0,0.6204258]
[1749576744885,0.26975247,108760.0,108750.0,0.6204258]
[1749576745091,0.19508551,108760.0,108750.0,0.6204258]
[1749576746096,0.19508551,108760.0,108750.0,0.6298616]
[1749576746324,0.19508551,108760.0,108750.0,1.32492344]
[1749576746566,0.19508551,108760.0,108750.0,0.6298616]
[1749576747398,0.19508551,108760.0,108750.0,0.6204258]
[1749576747837,0.19508551,108760.0,108750.0,0.7117792]
[1749576748239,0.19508551,108760.0,108750.0,1.40684104]
[1749576749941,0.19508551,108760.0,108750.0,1.41623244]
[1749576750385,0.05720228,108760.0,108750.0,1.34190583]
[1749576750633,0.05720228,108760.0,108750.0,1.33251437]
[1749576750855,0.05720228,108760.0,108750.0,0.6202334]
[1749576751099,0.05720228,108760.0,108750.0,1.31529524]
[1749576751352,0.05720228,108760.0,108750.0,1.33251556]
[1749576751976,0.05720228,108760.0,108750.0,0.6202334]
[1749576752377,0.05720228,108760.0,108750.0,0.63745372]
[1749576752576,0.05720228,108760.0,108750.0,0.6374553]
[1749576752821,0.05720228,108760.0,108750.0,0.6202334]
[1749576753028,0.05720228,108760.0,108750.0,0.6374553]
[1749576753423,0.05720228,108760.0,108750.0,0.6202334]
[1749576754701,0.05720228,108760.0,108750.0,0.63745439]
[1749576755075,0.05720228,108760.0,108750.0,0.6202334]
[1749576755296,0.05720228,108760.0,108750.0,0.63745439]
[1749576755682,0.05720228,108760.0,108750.0,0.5249534]
[1749576755887,0.05720228,108760.0,108750.0,0.6201934]
[1749576756084,0.05720228,108760.0,108750.0,0.63741439]
[1749576756340,0.05720228,108760.0,108750.0,0.63741377]
[1749576757275,0.05720228,108760.0,108750.0,0.63741376]
[1749576757624,0.05720228,108760.0,108750.0,0.6201934]
[1749576758029,0.05720228,108760.0,108750.0,1.31525524]
[1749576758460,0.05720228,108760.0,108750.0,1.33247561]
[1749576758846,0.05720228,108760.0,108750.0,1.31525524]
[1749576759594,0.05720228,108760.0,108750.0,0.6201934]
[1749576760009,0.05720228,108760.0,108750.0,0.63741289]
[1749576760659,0.05720228,108760.0,108750.0,0.7117392]
[1749576761283,0.05720228,108760.0,108750.0,0.72895767]
[1749576762169,0.05720228,108760.0,108750.0,0.72895641]
[1749576763029,0.05720228,108760.0,108750.0,0.7117392]
[1749576763236,0.05720228,108760.0,108750.0,1.4385591]
[1749576763447,0.02038834,108760.0,108750.0,2.33591936]
[1749576763672,0.18387423,108770.0,108750.0,2.22096715]
[1749576763897,0.00919379,108760.0,108750.0,1.46747595]
[1749576764143,0.0275818,108760.0,108750.0,1.65406888]
[1749576764367,0.03677601,108760.0,108750.0,1.68664338]
[1749576764582,0.0275818,108760.0,108750.0,1.68564338]
[1749576764801,0.0285818,108760.0,108750.0,1.68546886]
[1749576765021,0.0285818,108760.0,108750.0,2.38972551]
[1749576765236,0.01938767,108760.0,108750.0,2.38972392]
[1749576765473,0.0285818,108760.0,108750.0,2.38972392]
[1749576765678,0.0285818,108760.0,108750.0,2.38970077]
[1749576766102,0.03877669,108760.0,108750.0,1.68124924]
[1749576766321,0.23186237,108760.0,108750.0,1.68124924]
[1749576766546,0.23186237,108760.0,108750.0,1.68124935]
[1749576767160,0.23186237,108760.0,108750.0,1.6640588]
[1749576767405,0.23186237,108760.0,108750.0,1.68124929]
[1749576767826,0.23186237,108760.0,108750.0,1.67205406]
[1749576768030,0.23186237,108760.0,108750.0,1.56761875]
[1749576768031,0.22266849,108760.0,108750.0,1.56761875]
[1749576768252,0.22266849,108760.0,108750.0,1.68124932]
[1749576768504,0.22266849,108760.0,108750.0,1.67205409]
[1749576768716,0.22266849,108760.0,108750.0,1.68124931]
[1749576768923,0.22266849,108760.0,108750.0,1.6640588]
[1749576769132,0.22266849,108760.0,108750.0,1.67205408]
[1749576769359,0.22266849,108760.0,108750.0,0.96779532]
[1749576769607,0.22266849,108760.0,108750.0,1.67205247]
[1749576770037,0.22266849,108760.0,108750.0,1.6640588]
[1749576770224,0.22266849,108760.0,108750.0,1.68124771]
[1749576770478,0.22266849,108760.0,108750.0,1.65486357]
[1749576770687,0.22266849,108760.0,108750.0,1.67205248]
[1749576771338,0.22266849,108760.0,108750.0,1.65486357]
[1749576771559,0.22266849,108760.0,108750.0,0.97699081]
[1749576771745,0.21347436,108760.0,108750.0,1.4881447]
[1749576772003,0.21347436,108760.0,108750.0,1.67205274]
[1749576772778,0.21347436,108760.0,108750.0,1.67205197]
[1749576772954,0.21347436,108760.0,108750.0,1.65486366]
[1749576773139,0.21347436,108760.0,108750.0,1.67205195]
[1749576773714,0.07561189,108760.0,108750.0,1.64479012]
[1749576774043,0.08480627,108760.0,108750.0,1.64479011]
[1749576774244,0.08480627,108760.0,108750.0,1.63559481]
[1749576774441,0.08480627,108760.0,108750.0,1.62760181]
[1749576774671,0.08480627,108760.0,108750.0,1.63559479]
[1749576774873,0.08480627,108760.0,108750.0,1.63559477]
[1749576775036,0.08480627,108760.0,108750.0,1.63559478]
[1749576775246,0.08480627,108760.0,108750.0,0.75662487]
[1749576775450,0.08480627,108760.0,108750.0,0.66138487]
[1749576775734,0.08480627,108760.0,108750.0,1.45168671]
[1749576775952,0.08480627,108760.0,108750.0,1.45168689]
[1749576776694,0.08480627,108760.0,108750.0,1.43449846]
[1749576777503,0.08480627,108760.0,108750.0,1.44369377]
[1749576777704,0.08480627,108760.0,108750.0,1.62760181]
[1749576777940,0.08480627,108760.0,108750.0,1.63679704]
[1749576778385,0.01838868,108760.0,108750.0,1.6459921]
[1749576778633,0.21147436,108760.0,108750.0,1.92859704]
[1749576778960,0.21147436,108760.0,108750.0,1.91940181]
[1749576779875,0.21147436,108760.0,108750.0,1.92859704]
[1749576780101,0.01838868,108760.0,108750.0,1.9377921]
[1749576780307,0.02758323,108760.0,108750.0,1.99137594]
[1749576780524,0.21147436,108760.0,108750.0,1.91940181]
[1749576780753,0.21147436,108760.0,108750.0,1.03123662]
[1749576780962,0.20228006,108760.0,108750.0,1.03926568]
[1749576781179,0.20228006,108760.0,108750.0,1.72629846]
[1749576781392,0.20228006,108760.0,108750.0,1.74352294]
[1749576781829,0.20228006,108760.0,108750.0,1.72629846]
[1749576782032,0.20228006,108760.0,108750.0,1.91940181]
[1749576783576,0.06441741,108760.0,108750.0,1.91940181]
[1749576783793,0.07361179,108760.0,108750.0,1.91940181]
[1749576784119,0.07361179,108760.0,108750.0,1.22433997]
[1749576784318,0.07361179,108760.0,108750.0,1.91940181]
[1749576784690,0.07361179,108760.0,108750.0,1.62760181]
[1749576786785,0.01838851,108760.0,108750.0,1.63679704]
[1749576786996,0.01838851,108760.0,108750.0,1.6459921]
[1749576787204,0.21147419,108760.0,108750.0,1.64599218]
[1749576787430,0.21147419,108760.0,108750.0,1.64799374]
[1749576787631,0.21147419,108760.0,108750.0,1.6387986]
[1749576787840,0.21147419,108760.0,108750.0,0.9417352]
[1749576788042,0.21147419,108760.0,108750.0,1.6387986]
[1749576788244,0.02758306,108760.0,108750.0,1.64799374]
[1749576788452,0.20227964,108760.0,108750.0,1.6387986]
[1749576788648,0.20227964,108760.0,108750.0,1.62960337]
[1749576789054,0.20227964,108760.0,108750.0,1.63879851]
[1749576789055,0.02758306,108760.0,108750.0,1.63879851]
[1749576789260,0.01838851,108760.0,108750.0,1.64799357]
[1749576789460,0.01838851,108760.0,108750.0,2.34505697]
[1749576789675,0.02758239,108760.0,108750.0,2.35425194]
[1749576789883,0.22066807,108760.0,108750.0,2.31747137]